bitfinex-derivatives/quotes_ETHF0:USTF0_20250309
["timestamp","ask_amount","ask_price","bid_price","bid_amount"]
[1741487154163,6.2684,2191.5,2191.1,0.54776]
[1741487155475,3.2078,2191.3,2190.8,7.1777]
[1741487155673,6.5186,2191.2,2190.8,7.1777]
[1741487155874,6.1848,2191.1,2190.8,5.45202936]
[1741487156778,6.1848,2191.1,2190.8,3.45302936]
[1741487157279,6.1848,2191.1,2191.0,0.54778]
[1741487158377,6.1848,2191.1,2190.8,3.45302936]
[1741487158577,6.1848,2191.1,2190.7,1.85136346]
[1741487158781,6.1848,2191.1,2190.7,2.39921346]
[1741487158973,3.2078,2191.0,2190.6,1.999]
[1741487159174,3.2078,2191.0,2190.7,0.54785]
[1741487159375,3.21463683,2191.0,2190.7,0.54785]
[1741487159574,4.8704,2190.9,2190.7,0.54785]
[1741487159783,6.116,2190.8,2190.7,0.54785]
[1741487160582,6.116,2190.8,2190.7,2.34410301]
[1741487161777,6.116,2190.8,2190.7,1.79625301]
[1741487161978,6.116,2190.8,2190.5,27.33590238]
[1741487162175,6.1645,2190.7,2190.5,27.33590238]
[1741487162375,6.1645,2190.7,2190.6,0.54788]
[1741487164083,6.1645,2190.7,2190.6,2.34311243]
[1741487164871,6.1645,2190.7,2190.6,0.06966179]
[1741487165077,6.1645,2190.7,2190.5,20.83860238]
[1741487165282,6.1645,2190.7,2190.6,0.54788]
[1741487165778,6.1645,2190.7,2190.5,20.83860238]
[1741487166384,6.1645,2190.7,2190.5,21.38651238]
[1741487166579,6.1645,2190.7,2190.6,0.54789]
[1741487166780,6.1645,2190.7,2190.5,23.21516252]
[1741487167487,6.1645,2190.7,2190.5,22.66726252]
[1741487168075,6.1645,2190.7,2190.5,20.39381188]
[1741487168281,6.1645,2190.7,2190.5,20.94172188]
[1741487169287,6.1645,2190.7,2190.6,0.54789]
[1741487169475,6.1645,2190.7,2190.5,20.94171188]
[1741487170985,6.1645,2190.7,2190.5,18.12036124]
[1741487171185,6.1645,2190.7,2190.6,0.54789]
[1741487171785,3.21463683,2191.0,2190.9,0.54781]
[1741487171989,3.2078,2191.3,2190.7,3.2078]
[1741487172286,1.999,2191.5,2191.1,0.54775]
[1741487173182,2.00583683,2191.5,2191.1,0.55458683]
[1741487173385,0.00683683,2191.5,2191.1,0.00683683]
[1741487173688,0.00683683,2191.5,2191.1,0.55458683]
[1741487174086,0.00683683,2191.5,2191.0,7.38793619]
[1741487174485,0.00683683,2191.5,2191.3,0.54771]
[1741487174687,0.00683683,2191.5,2191.2,0.54772]
[1741487174888,12.85033683,2191.5,2191.1,0.54775]
[1741487175694,3.2078,2191.3,2190.8,6.2619]
[1741487175888,3.2078,2191.3,2190.9,0.5478]
[1741487176285,3.2078,2191.3,2191.0,0.54777]
[1741487176887,3.2078,2191.3,2190.8,6.2619]
[1741487177091,3.2078,2191.3,2191.1,0.54775]
[1741487177789,3.2078,2191.3,2190.8,3.98844936]
[1741487177991,3.2078,2191.3,2191.0,0.54777]
[1741487178893,3.2078,2191.3,2190.9,0.54781]
[1741487179091,3.2078,2191.3,2190.8,3.98844936]
[1741487179291,3.2078,2191.3,2191.0,0.54777]
[1741487179679,3.2078,2191.3,2190.8,3.98844936]
[1741487180085,3.2078,2191.3,2190.8,6.84007872]
[1741487180282,3.2078,2191.3,2191.2,0.54774]
[1741487180690,12.85033683,2191.5,2191.4,0.54769]
[1741487180980,6.48533683,2191.5,2191.4,0.54769]
[1741487181687,9.04201366,2192.1,2191.7,0.5476]
[1741487181995,5.9845,2192.0,2191.8,0.54757]
[1741487182293,10.8684,2192.0,2191.8,0.54757]
[1741487183092,10.8684,2192.0,2191.5,9.26141936]
[1741487183285,10.8684,2192.0,2191.6,6.4086]
[1741487183493,10.8684,2192.0,2191.8,0.54757]
[1741487184186,10.8684,2192.0,2191.7,0.54759]
[1741487184893,10.8684,2192.0,2191.8,0.54758]
[1741487185593,10.8684,2192.0,2191.6,6.4086]
[1741487185787,10.8684,2192.0,2191.6,6.95623]
[1741487186190,10.8684,2192.0,2191.6,0.54763]
[1741487188393,10.8684,2192.0,2191.7,0.5476]
[1741487188596,10.8684,2192.0,2191.4,5.2058]
[1741487189096,10.8684,2192.0,2191.7,0.54761]
[1741487189396,10.8684,2192.0,2191.4,3.47995936]
[1741487189792,10.8684,2192.0,2191.9,0.54756]
[1741487189991,10.8684,2192.0,2191.8,0.54758]
[1741487190386,10.8684,2192.0,2191.7,0.5476]
[1741487190598,10.8684,2192.0,2191.4,3.47995936]
[1741487190792,10.8684,2192.0,2191.8,0.54759]
[1741487191195,10.8684,2192.0,2191.9,0.54756]
[1741487191593,10.8684,2192.0,2191.8,0.54757]
[1741487192291,10.8684,2192.0,2191.4,6.33107872]
[1741487192692,10.8684,2192.0,2191.7,0.54759]
[1741487193197,10.8684,2192.0,2191.6,0.54762]
[1741487193398,10.8684,2192.0,2191.4,4.96187872]
[1741487193599,10.8684,2192.0,2191.8,0.54759]
[1741487193901,10.8684,2192.0,2191.7,0.54759]
[1741487194102,10.8684,2192.0,2191.4,4.96187872]
[1741487194305,10.8684,2192.0,2191.9,0.54756]
[1741487195301,10.8684,2192.0,2191.7,4.72720936]
[1741487195803,10.8684,2192.0,2191.7,0.5476]
[1741487196502,10.8684,2192.0,2191.8,0.54758]
[1741487196801,10.8684,2192.0,2191.7,0.5476]
[1741487196997,3.2078,2191.9,2191.6,0.8872693]
[1741487197301,3.2078,2191.9,2191.6,0.3396393]
[1741487197500,3.2078,2191.9,2191.6,0.54763]
[1741487198501,3.2078,2191.9,2191.3,12.49042808]
[1741487198698,3.2078,2191.9,2191.6,0.54762]
[1741487198900,3.2078,2191.9,2191.5,0.54764]
[1741487199202,3.2078,2191.9,2191.4,0.54767]
[1741487199902,3.2078,2191.9,2191.4,0.54768]
[1741487200099,3.2078,2191.9,2191.6,0.54763]
[1741487200701,3.2078,2191.9,2191.2,23.70063683]
[1741487201403,3.2078,2191.9,2191.2,21.97483619]
[1741487201607,3.2078,2191.9,2191.3,0.54771]
[1741487201798,3.2078,2191.9,2191.2,21.97483619]
[1741487202001,3.2078,2191.9,2191.4,0.54768]
[1741487202502,12.8654,2192.0,2191.4,0.54768]
[1741487202503,3.2078,2191.6,2191.4,0.54768]
[1741487202705,17.7557,2191.5,2191.4,0.54768]
[1741487203906,17.7557,2191.5,2191.3,0.54771]
[1741487204409,17.7557,2191.5,2191.2,20.24909555]
[1741487204612,17.7557,2191.5,2191.2,20.79681555]
[1741487205610,17.7557,2191.5,2191.2,3.75552]
[1741487205798,17.7557,2191.5,2191.3,0.54771]
[1741487206000,17.7557,2191.5,2191.2,3.2078]
[1741487206197,17.7557,2191.5,2191.3,0.5477]
[1741487207010,3.2078,2191.6,2191.2,3.2078]
[1741487207209,17.7901,2191.8,2191.6,0.54762]
[1741487207403,17.7901,2191.8,2191.4,3.84304936]
[1741487207603,17.7901,2191.8,2191.6,0.54764]
[1741487208807,17.7901,2191.8,2191.4,3.84304936]
[1741487209007,17.7901,2191.8,2191.7,0.54761]
[1741487210408,2.00383683,2192.1,2191.6,3.2078]
[1741487210605,12.6018,2192.0,2191.4,5.21223936]
[1741487210805,12.6018,2192.0,2191.4,7.20923936]
[1741487211106,12.6018,2192.0,2191.6,0.54762]
[1741487211409,12.6018,2192.0,2191.4,5.84004936]
[1741487211610,12.6018,2192.0,2191.7,0.54761]
[1741487211809,12.6018,2192.0,2191.6,0.54762]
[1741487212000,12.6018,2192.0,2191.7,0.54761]
[1741487212207,3.2078,2191.9,2191.3,9.3304]
[1741487212410,3.2078,2191.9,2191.3,0.5477]
[1741487212610,5.1371,2191.8,2191.3,0.5477]
[1741487213111,5.1371,2191.8,2191.4,0.54769]
[1741487213506,5.1371,2191.8,2191.0,9.3308]
[1741487213707,3.2078,2191.6,2191.0,3.2078]
[1741487213914,11.7764,2191.5,2191.0,3.75557]
[1741487214206,11.7764,2191.5,2191.1,0.54775]
[1741487214410,11.7764,2191.5,2191.3,0.5477]
[1741487214619,4.7269,2191.4,2191.3,0.5477]
[1741487215414,11.7764,2191.5,2191.4,0.54769]
[1741487216608,11.7764,2191.5,2191.1,10.96583936]
[1741487216812,4.7269,2191.7,2191.2,4.7195]
[1741487217011,6.32851366,2191.9,2191.3,4.57709]
[1741487217209,6.32851366,2191.9,2191.8,0.54759]
[1741487217517,3.2078,2191.9,2191.7,0.5476]
[1741487217911,3.2078,2191.9,2191.5,10.8584]
[1741487218216,3.2078,2191.9,2191.5,5.26715]
[1741487219014,3.2078,2191.9,2191.6,0.54764]
[1741487219713,3.2078,2191.9,2191.6,0.54762]
[1741487219915,5.0674,2191.8,2191.6,0.54762]
[1741487220110,17.6708,2191.8,2191.6,0.54762]
[1741487220312,17.6708,2191.8,2191.7,0.54761]
[1741487220514,17.6708,2191.8,2191.5,2.99368936]
[1741487220812,17.6708,2191.8,2191.5,0.54764]
[1741487221811,17.6708,2191.8,2191.4,0.54768]
[1741487222513,17.6708,2191.8,2191.6,0.54764]
[1741487222714,17.6708,2191.8,2191.3,4.37818936]
[1741487222915,17.6708,2191.8,2191.3,9.17768936]
[1741487223512,17.6708,2191.8,2191.6,0.54763]
[1741487224011,17.6708,2191.8,2191.3,9.17768936]
[1741487224217,17.6708,2191.8,2191.5,0.54765]
[1741487224718,17.6708,2191.8,2191.7,0.54761]
[1741487224919,17.6708,2191.8,2191.6,0.54762]
[1741487225719,17.6708,2191.8,2191.3,10.65965872]
[1741487225915,17.6708,2191.8,2191.6,0.54763]
[1741487227218,17.6708,2191.8,2191.3,10.65965872]
[1741487227519,17.6708,2191.8,2191.6,0.54763]
[1741487228020,17.6708,2191.8,2191.3,3.2078]
[1741487228211,17.6708,2191.8,2191.4,0.54768]
[1741487228820,17.6708,2191.8,2191.1,11.77723936]
[1741487229117,3.2078,2191.6,2191.4,0.54767]
[1741487229316,3.2078,2191.6,2191.5,0.54766]
[1741487231120,17.6708,2191.8,2191.7,0.54761]
[1741487231713,17.6708,2191.8,2191.5,9.25565936]
[1741487232413,17.6708,2191.8,2191.7,0.54761]
[1741487234817,17.6708,2191.8,2191.5,7.52981872]
[1741487235013,17.6708,2191.8,2191.7,0.54761]
[1741487237824,17.6708,2191.8,2191.5,5.80397808]
[1741487238422,17.6708,2191.8,2191.7,0.54761]
[1741487239021,16.7526,2191.8,2191.7,0.54761]
[1741487239428,2.80778338,2191.9,2191.8,0.54759]
[1741487239624,0.00683683,2192.1,2192.0,0.54754]
[1741487240422,0.00683683,2192.1,2192.0,2.05962051]
[1741487240932,0.00683683,2192.1,2192.0,0.54754]
[1741487241117,0.00683683,2192.1,2192.0,2.09213837]
[1741487241322,0.00683683,2192.1,2192.0,0.54754]
[1741487241823,3.2078,2192.2,2192.1,0.54751]
[1741487242424,3.2078,2192.2,2191.9,1.996]
[1741487242622,3.2078,2192.2,2192.0,0.54754]
[1741487242623,10.9127,2192.1,2192.0,0.54754]
[1741487243023,10.9127,2192.1,2191.9,1.996]
[1741487243418,10.9127,2192.1,2191.8,0.00683683]
[1741487243631,10.9127,2192.1,2192.0,0.54754]
[1741487243822,10.9127,2192.1,2191.6,5.19358386]
[1741487244022,10.9127,2192.1,2191.7,4.7233]
[1741487244431,9.81924411,2192.1,2192.0,0.54754]
[1741487244629,3.12071366,2193.0,2192.0,1.57195672]
[1741487244838,3.2078,2192.7,2192.2,3.2078]
[1741487245130,5.8101,2192.6,2192.2,3.2078]
[1741487245330,10.5545,2192.6,2192.3,0.54746]
[1741487245726,10.5545,2192.6,2192.4,0.54744]
[1741487245929,10.5545,2192.6,2192.2,3.76210683]
[1741487246943,10.5545,2192.6,2192.2,0.00683683]
[1741487247233,10.5545,2192.6,2192.3,0.54746]
[1741487247527,10.5545,2192.6,2192.2,0.55431683]
[1741487247732,6.1546,2192.5,2192.2,0.55432683]
[1741487249029,6.1546,2192.5,2192.3,0.54744]
[1741487249331,6.1546,2192.5,2192.3,0.54746]
[1741487250032,6.1546,2192.5,2192.1,5.0381]
[1741487250033,6.1546,2192.5,2192.1,3.31894619]
[1741487250331,6.1546,2192.5,2192.3,0.54746]
[1741487250525,6.1546,2192.5,2192.2,0.54747]
[1741487250725,6.1546,2192.5,2192.3,0.54746]
[1741487251729,6.1546,2192.5,2192.4,0.54744]
[1741487252931,6.1546,2192.5,2192.2,7.69628936]
[1741487253231,6.1546,2192.5,2192.3,0.54745]
[1741487253433,6.1546,2192.5,2192.3,0.54744]
[1741487253636,6.1546,2192.5,2192.4,0.54744]
[1741487254030,1.996,2192.9,2192.1,1.36876]
[1741487254031,3.2078,2193.0,2192.2,4.57649]
[1741487254231,11.3311,2192.7,2192.6,0.54739]
[1741487256135,11.3311,2192.7,2192.3,3.32287619]
[1741487256337,11.3311,2192.7,2192.6,0.54739]
[1741487258132,6.3902,2192.8,2192.3,4.69149619]
[1741487258332,6.3902,2192.8,2192.7,0.54736]
[1741487259238,6.3902,2192.8,2192.4,3.36357]
[1741487259239,6.3902,2192.8,2192.4,1.63747936]
[1741487260138,6.3902,2192.8,2192.7,0.54736]
[1741487260529,6.3902,2192.8,2192.6,0.54738]
[1741487261129,6.3902,2192.8,2192.5,0.5474]
[1741487261738,6.3902,2192.8,2192.4,0.54742]
[1741487262032,6.3902,2192.8,2192.5,0.54741]
[1741487262234,6.3902,2192.8,2192.3,20.74695936]
[1741487262538,6.3902,2192.8,2192.6,0.54738]
[1741487262838,6.3902,2192.8,2192.3,20.74695936]
[1741487263046,6.3902,2192.8,2192.5,0.54739]
[1741487263837,6.3902,2192.8,2192.3,20.74695936]
[1741487264040,6.3902,2192.8,2192.5,0.54741]
[1741487264839,6.3902,2192.8,2192.3,20.74695936]
[1741487265236,6.3902,2192.8,2192.6,0.54737]
[1741487266542,6.3902,2192.8,2192.7,0.54736]
[1741487266935,10.81813683,2192.9,2192.8,0.54734]
[1741487270245,8.70703683,2192.9,2192.8,0.54734]
[1741487270543,6.0785,2192.9,2192.8,0.54734]
[1741487271130,4.6395,2192.9,2192.8,0.54734]
[1741487271336,3.2078,2193.0,2192.9,0.54731]
[1741487272343,2.36210228,2193.2,2193.1,0.54726]
[1741487272543,2.36210228,2193.2,2193.0,0.54728]
[1741487273340,4.7704,2193.1,2193.0,0.54728]
[1741487273845,2.36210228,2193.2,2193.1,0.54726]
[1741487274036,7.13250228,2193.2,2192.9,3.54777115]
[1741487274238,7.13250228,2193.2,2192.9,0.88726115]
[1741487274440,6.1514,2193.1,2193.0,0.54729]
[1741487274741,6.1514,2193.1,2192.7,1.995]
[1741487274941,6.1514,2193.1,2193.0,0.54729]
[1741487276742,7.13250228,2193.2,2193.1,0.54726]
[1741487277138,6.3156,2193.5,2192.7,8.4453356]
[1741487277345,6.3156,2193.5,2193.2,0.54722]
[1741487277346,11.4794,2193.4,2193.2,0.54722]
[1741487278043,11.4794,2193.4,2192.8,3.36236]
[1741487278044,11.4794,2193.4,2193.3,0.54721]
[1741487278341,4.89558354,2193.5,2193.0,3.2078]
[1741487278542,4.89558354,2193.5,2193.4,0.54719]
[1741487278944,4.89558354,2193.5,2193.1,13.62527]
[1741487278945,14.69403683,2193.6,2193.2,1.994]
[1741487279245,14.69403683,2193.6,2193.5,0.54716]
[1741487280348,14.69403683,2193.6,2193.2,0.26770936]
[1741487280549,14.69403683,2193.6,2193.5,0.54716]
[1741487280951,11.48623683,2193.6,2193.5,0.54716]
[1741487281738,11.48623683,2193.6,2193.5,2.049604]
[1741487282243,10.46523683,2193.6,2193.5,2.049604]
[1741487282449,6.2599,2193.8,2193.7,0.54711]
[1741487282752,12.3084,2193.8,2193.7,0.54711]
[1741487282944,12.3084,2193.8,2193.3,3.2078]
[1741487283250,12.3084,2193.8,2193.6,0.54713]
[1741487283551,12.31523683,2193.8,2193.6,0.54713]
[1741487283849,12.31523683,2193.8,2193.6,0.54714]
[1741487284452,12.31523683,2193.8,2193.6,0.54712]
[1741487284647,22.75161353,2194.2,2193.6,3.2078]
[1741487284851,22.75161353,2194.2,2193.8,0.54708]
[1741487285357,5.1684,2194.1,2193.8,0.54708]
[1741487285748,5.1684,2194.1,2193.7,6.50963683]
[1741487286049,5.1684,2194.1,2193.7,0.55393683]
[1741487286248,5.1684,2194.1,2193.7,0.00683683]
[1741487286450,5.1684,2194.1,2193.5,8.55180167]
[1741487286750,3.2078,2193.9,2193.5,2.68766167]
[1741487286946,3.2078,2193.9,2193.5,2.14050167]
[1741487287146,4.8647,2193.8,2193.5,2.14050167]
[1741487287354,4.8647,2193.8,2193.6,0.54714]
[1741487287752,11.8097,2193.7,2193.6,0.54714]
[1741487289254,11.8097,2193.7,2193.5,0.14650167]
[1741487289450,11.8097,2193.7,2193.4,18.75056619]
[1741487289648,11.8097,2193.7,2193.4,18.20338619]
[1741487290251,3.2078,2193.5,2192.9,9.5194]
[1741487290650,3.2078,2193.5,2192.9,3.2078]
[1741487290845,13.80208092,2193.7,2193.6,0.54714]
[1741487291050,10.68136726,2193.7,2193.6,0.54714]
[1741487291654,10.68136726,2193.7,2193.5,0.54715]
[1741487291848,10.68136726,2193.7,2193.4,0.00683683]
[1741487292149,5.9949,2193.7,2193.6,0.54714]
[1741487292356,5.9949,2193.7,2193.4,0.00683683]
[1741487292357,5.9755,2193.9,2193.5,10.9497]
[1741487292557,5.9755,2193.9,2193.8,0.54709]
[1741487293159,5.9755,2193.9,2193.6,0.54712]
[1741487293360,5.9755,2193.9,2193.5,8.67624936]
[1741487293361,5.9755,2193.9,2193.5,0.54716]
[1741487293654,5.9755,2193.9,2193.4,0.00683683]
[1741487293852,5.9755,2193.9,2193.8,0.54709]
[1741487294055,11.8466,2193.9,2193.8,0.54709]
[1741487295153,11.8466,2193.9,2193.5,3.2078]
[1741487295359,11.8466,2193.9,2193.8,0.54709]
[1741487295561,11.8466,2193.9,2193.5,1.48143936]
[1741487295760,11.8466,2193.9,2193.8,0.54709]
[1741487298459,11.8466,2193.9,2193.7,6.0618]
[1741487298665,11.8466,2193.9,2193.7,4.33543936]
[1741487298861,11.8466,2193.9,2193.5,3.47443936]
[1741487299070,11.8466,2193.9,2193.8,0.54709]
[1741487300064,4.9575,2194.0,2193.5,10.06922936]
[1741487300263,4.9575,2194.0,2193.9,0.54706]
[1741487300672,4.9575,2194.0,2193.5,10.06922936]
[1741487300872,4.9575,2194.0,2193.8,0.54707]
[1741487301363,4.9575,2194.0,2193.5,8.70133936]
[1741487301676,4.9575,2194.0,2193.5,6.97494872]
[1741487301877,4.9575,2194.0,2193.6,6.4168]
[1741487302072,4.9575,2194.0,2193.8,0.54708]
[1741487303877,4.9575,2194.0,2193.6,6.4168]
[1741487304173,4.9575,2194.0,2193.8,0.54708]
[1741487304478,12.0702,2194.1,2193.9,0.54705]
[1741487304679,4.9445,2194.0,2193.6,4.69039936]
[1741487304975,4.9445,2194.0,2193.9,0.54705]
[1741487305377,4.9445,2194.0,2193.8,0.54707]
[1741487305680,4.9445,2194.0,2193.9,0.54706]
[1741487306177,4.9445,2194.0,2193.8,0.54708]
[1741487306372,4.9445,2194.0,2193.9,0.54706]
[1741487307473,12.0702,2194.1,2193.6,4.69039936]
[1741487307673,12.0702,2194.1,2193.6,4.33177872]
[1741487308075,12.0702,2194.1,2194.0,0.54704]
[1741487308674,5.9789,2194.1,2194.0,0.54704]
[1741487309280,5.9789,2194.1,2193.8,10.9947]
[1741487309480,5.9789,2194.1,2193.9,0.54705]
[1741487310079,5.9789,2194.1,2193.8,11.54177]
[1741487310676,5.9789,2194.1,2193.8,9.26831936]
[1741487310877,5.9789,2194.1,2193.9,0.54706]
[1741487311579,5.9789,2194.1,2193.8,8.72124936]
[1741487311783,5.9789,2194.1,2193.9,0.54705]
[1741487312279,5.9789,2194.1,2193.8,4.7893]
[1741487312484,4.9944,2194.0,2193.9,0.54706]
[1741487312980,4.9944,2194.0,2193.7,0.5471]
[1741487313177,9.3165,2193.9,2193.7,0.5471]
[1741487313684,9.3165,2193.9,2193.6,7.74912808]
[1741487314283,9.3165,2193.9,2193.7,0.5471]
[1741487314784,3.2078,2193.9,2193.6,7.74912808]
[1741487314984,3.2078,2193.9,2193.8,0.54709]
[1741487315481,3.2078,2193.9,2193.7,0.5471]
[1741487315681,10.9885,2193.8,2193.7,0.5471]
[1741487316785,10.9885,2193.8,2193.6,6.02277744]
[1741487316987,10.9885,2193.8,2193.7,0.5471]
[1741487319792,10.9885,2193.8,2193.6,4.2964268]
[1741487320090,10.9885,2193.8,2193.7,0.5471]
[1741487320385,3.2078,2193.9,2193.8,0.54709]
[1741487320584,3.2078,2193.9,2193.7,0.5471]
[1741487321981,3.2078,2193.9,2193.6,4.2964268]
[1741487321982,3.2078,2193.9,2193.8,0.54709]
[1741487322182,3.2078,2193.9,2193.6,4.2964268]
[1741487322384,3.2078,2193.9,2193.7,0.5471]
[1741487322785,3.2078,2193.9,2193.6,2.57007616]
[1741487322985,5.0102,2193.8,2193.6,2.57007616]
[1741487323185,5.0102,2193.8,2193.7,0.5471]
[1741487324586,11.8776,2194.1,2194.0,0.54704]
[1741487324786,11.8776,2194.1,2193.9,0.54705]
[1741487325087,11.8776,2194.1,2194.0,0.54704]
[1741487325990,11.8776,2194.1,2193.7,1.48376442]
[1741487326193,11.8776,2194.1,2194.0,0.54704]
[1741487327696,16.7823,2194.1,2194.0,0.54704]
[1741487328690,5.9789,2194.1,2194.0,0.54704]
[1741487329195,9.96517327,2194.4,2193.9,9.42786442]
[1741487329393,9.96517327,2194.4,2194.3,0.54696]
[1741487329787,9.96517327,2194.4,2194.2,0.54698]
[1741487330888,9.96517327,2194.4,2193.9,11.42086442]
[1741487331083,9.96517327,2194.4,2194.2,0.54698]
[1741487331590,9.96517327,2194.4,2193.9,11.42086442]
[1741487331888,9.96517327,2194.4,2193.9,9.69676884]
[1741487332089,9.96517327,2194.4,2193.9,4.79156884]
[1741487332291,6.2407,2194.3,2194.2,0.54699]
[1741487334897,6.2407,2194.3,2193.9,3.06748326]
[1741487335196,6.2407,2194.3,2194.2,0.54699]
[1741487337999,6.2407,2194.3,2193.9,1.34339768]
[1741487339099,6.2407,2194.3,2194.1,0.54701]
[1741487339890,6.2407,2194.3,2193.9,1.34339768]
[1741487340093,6.2407,2194.3,2194.0,0.54703]
[1741487340599,3.2078,2194.2,2193.8,0.89729544]
[1741487340793,3.2078,2194.2,2193.8,0.89728544]
[1741487340993,3.2078,2193.9,2193.3,18.20076125]
[1741487341202,11.9734,2193.8,2193.3,18.20076125]
[1741487341495,16.9544,2193.8,2193.5,0.54715]
[1741487343802,10.9894,2193.8,2193.5,0.54715]
[1741487344108,10.9894,2193.8,2193.3,16.4836725]
[1741487344308,10.9894,2193.8,2193.4,0.54718]
[1741487344497,8.616517,2193.8,2193.3,16.4836725]
[1741487344701,8.616517,2193.8,2193.7,0.54711]
[1741487344898,3.2078,2193.9,2193.3,17.8516625]
[1741487345203,3.2078,2194.2,2193.8,0.54709]
[1741487345602,3.2078,2194.2,2194.1,0.54701]
[1741487345804,7.0031,2194.3,2194.0,0.54703]
[1741487346200,7.0031,2194.3,2193.6,3.2078]
[1741487346403,7.0031,2194.3,2194.1,0.54701]
[1741487346706,7.0031,2194.3,2194.0,0.54703]
[1741487347203,3.2078,2194.2,2193.6,1.48375442]
[1741487347595,3.2078,2194.2,2193.9,0.54705]
[1741487347799,6.2719,2194.1,2193.9,0.54705]
[1741487348007,6.2719,2194.1,2194.0,0.54704]
[1741487349002,3.2078,2194.2,2194.1,0.54701]
[1741487350104,3.2078,2194.2,2193.6,1.12749884]
[1741487350303,3.2078,2194.2,2194.1,0.54701]
[1741487351805,3.2078,2194.2,2193.9,10.9869]
[1741487352108,3.2078,2194.2,2194.0,0.54704]
[1741487352308,3.2078,2194.2,2194.1,0.54701]
[1741487353312,3.2078,2194.2,2193.9,4.54837836]
[1741487353512,3.2078,2194.2,2194.0,0.54704]
[1741487354011,6.0082,2194.1,2194.0,0.54704]
[1741487354717,6.0082,2194.1,2193.9,0.89749394]
[1741487355018,4.9097,2194.0,2193.9,0.35044394]
[1741487355215,4.9097,2194.0,2193.8,0.54707]
[1741487355509,3.2078,2193.9,2193.4,0.00683683]
[1741487355719,3.2078,2193.6,2193.5,0.54716]
[1741487356220,3.2078,2193.6,2193.3,16.75861375]
[1741487356515,3.2078,2193.6,2193.4,0.54718]
[1741487356708,4.7588,2193.5,2193.4,0.54718]
[1741487358216,4.7588,2193.5,2193.3,17.09328373]
[1741487358217,4.7588,2193.5,2193.3,17.64048373]
[1741487358411,4.7588,2193.5,2193.3,15.10128373]
[1741487358614,4.7588,2193.5,2193.3,14.76661375]
[1741487359324,4.7588,2193.5,2193.3,12.49553817]
[1741487362310,4.7588,2193.5,2193.3,10.22446259]
[1741487362807,4.7588,2193.5,2193.3,10.77167259]
[1741487363011,4.7588,2193.5,2193.3,10.77166259]
[1741487363620,4.7588,2193.5,2193.4,0.54719]
[1741487364119,4.7588,2193.5,2193.4,6.40879]
[1741487364314,3.2078,2193.6,2193.4,6.40879]
[1741487365520,3.2078,2193.6,2193.4,4.13771442]
[1741487365816,3.2078,2193.6,2193.4,4.68489442]
[1741487366116,3.2078,2193.6,2193.4,4.13771442]
[1741487368520,3.2078,2193.6,2193.4,2.41382884]
[1741487370517,3.2078,2193.6,2193.3,15.32816259]
[1741487370709,3.2078,2193.6,2193.3,10.77167259]
[1741487370914,3.2078,2193.6,2193.4,0.54718]
[1741487371110,3.2078,2193.6,2193.2,0.00683683]
[1741487371312,3.2078,2193.3,2193.2,0.00683683]
[1741487371515,3.2078,2193.3,2193.0,5.2027669]
[1741487371822,3.2078,2193.3,2193.1,0.54725]
[1741487372317,3.2078,2193.3,2193.0,6.09505497]
[1741487372619,3.2078,2193.3,2192.5,22.458]
[1741487372920,3.2078,2192.9,2192.8,0.54733]
[1741487373614,3.2078,2192.9,2192.6,19.58592571]
[1741487373615,3.2078,2192.9,2192.7,0.54736]
[1741487374410,3.2078,2192.9,2192.6,18.19986304]
[1741487374621,3.2078,2192.9,2192.7,0.54735]
[1741487375115,3.2078,2192.9,2192.6,18.74723304]
[1741487375723,3.2078,2192.9,2192.6,18.19986304]
[1741487375927,3.2078,2192.9,2192.7,0.54736]
[1741487376621,3.2078,2192.9,2192.6,18.19986304]
[1741487376622,3.2078,2192.9,2192.8,0.54734]
[1741487376821,3.2078,2192.9,2192.6,18.19986304]
[1741487377125,3.2078,2192.9,2192.7,0.54735]
[1741487377523,3.2078,2192.9,2192.6,16.47613746]
[1741487378124,3.2078,2192.9,2192.7,0.54735]
[1741487378623,3.2078,2192.9,2192.6,16.47613746]
[1741487378624,3.2078,2192.9,2192.8,0.54734]
[1741487379226,3.2078,2192.9,2192.7,0.54735]
[1741487379823,3.2078,2192.9,2192.8,0.54734]
[1741487380217,3.2078,2192.9,2192.7,0.54735]
[1741487380619,3.2078,2192.9,2192.6,14.75241188]
[1741487381021,3.2078,2192.9,2192.7,0.54736]
[1741487381524,3.2078,2192.9,2192.6,14.75241188]
[1741487381525,3.2078,2192.9,2192.6,13.63660136]
[1741487382227,5.0292,2192.8,2192.6,2.15653136]
[1741487382527,5.0292,2192.8,2192.6,0.54737]
[1741487382825,5.0292,2192.8,2192.6,5.52277]
[1741487383525,5.0292,2192.8,2192.6,3.25169442]
[1741487383727,5.0292,2192.8,2192.6,5.05686978]
[1741487383918,11.1683,2192.8,2192.7,0.54736]
[1741487384118,3.2078,2192.9,2192.6,5.05686978]
[1741487384318,6.32851366,2193.2,2193.0,0.54728]
[1741487384724,6.32851366,2193.2,2192.7,12.4808]
[1741487384926,6.32851366,2193.2,2193.0,0.54728]
[1741487385731,6.32851366,2193.2,2192.9,0.5473]
[1741487386225,6.32851366,2193.2,2192.7,6.1551]
[1741487386524,6.32851366,2193.2,2192.9,0.5473]
[1741487387923,3.2078,2193.2,2192.9,0.5473]
[1741487388926,3.2078,2193.2,2193.0,0.54728]
[1741487389625,3.2078,2193.2,2192.9,4.28890442]
[1741487390126,3.2078,2193.2,2193.0,0.54728]
[1741487390330,1.165,2193.2,2192.9,4.28890442]
[1741487390622,0.00683683,2193.4,2193.3,0.54721]
[1741487392624,0.00683683,2193.4,2193.1,4.45373442]
[1741487393128,0.00683683,2193.4,2193.3,0.54721]
[1741487393828,0.00683683,2193.4,2193.1,4.45373442]
[1741487394130,0.00683683,2193.4,2193.2,0.54722]